Cogmind - Beta 16 @@@ ROGUE MODE // 2025.12.06 @ 12:33:23 Player: MrProgressor Result: Destroyed by X-87 Electro with Compact HERF Cannon Performance ------------- Evolutions (7) 3500 Regions Visited (9) 1800 Robots Destroyed (38) 190 Value Destroyed (1561) 1561 Prototype IDs (5) 100 Alien Tech Used (0) 0 Bonus (-110) -110 TOTAL SCORE: 7041 Bonus ------- Friendly Fire -110 Cogmind --------- Core Integrity 0/1300 Matter 161/300 Energy 99/100 System Corruption 6% Temperature Cool (0) Movement Core (50) Location -3/Research Parts ------- > --- POWER (2) -------- (None) > --- PROPULSION (6) --- Biometal Medium Treads > --- UTILITY (9) ------ Experimental Coolant Injector Jamming Amplifier > --- WEAPON (4) ------- (None) > --- INVENTORY (5) ---- Improved Fusion Compressor Advanced Force Field Improved Field Recycling Unit (0) Tesla Rifle Peak State ------------ > --- POWER ------------ Fission Core Micro Fission Core > --- PROPULSION ------- Nuclear Pulse Thruster Nuclear Pulse Array Nuclear Pulse Array > --- UTILITY ---------- Small Storage Unit Improved Reaction Control System Cloaking Device Improved Weapon Shielding > --- WEAPON ----------- Autogun Makeshift Shrapnel Gun Enhanced Gauss Cannon > --- INVENTORY -------- Light Nuclear Core Improved Fusion Compressor High-capacity Matter Pod Energy Filter [Rating: 67] Favorites ----------- Power Light Nuclear Core Engine Light Angular Momentum Engine Power Core Light Nuclear Core Reactor Light Antimatter Reactor Propulsion Compact Wheel Treads Light Treads Leg Carbon-fiber Leg Wheel Compact Wheel Flight Unit Nuclear Pulse Array Utility Improved Heat Sink Device Improved Heat Sink Storage Small Storage Unit Processor Jamming Amplifier Hackware System Shield Protection Improved Weapon Shielding Weapon Light Assault Rifle Energy Gun Gatling Laser Energy Cannon Heavy Plasma Cannon Ballistic Gun Light Assault Rifle Ballistic Cannon Enhanced Gauss Cannon Launcher Grenade Launcher Slashing Weapon Katana Build | -11 -10 -10 -8 -6 -5 -5 -5 -4 -3 ------- Run | Yrd Mat Sub Scr Fac Fac Upp Upp Fac Res Slots Evolved 14 | . . . . 8 2 . . 2 2 Power 1 | . . . . 1 . . . . . Propulsion 4 | . . . . 2 1 . . 1 . Utility 7 | . . . . 4 . . . 1 2 Weapon 2 | . . . . 1 1 . . . . Parts Attached 78 | 6 5 . 4 19 13 5 5 4 17 Power 11 | 1 1 . . 3 2 2 . 1 1 Engine 5 | 1 . . . 3 1 . . . . Core 5 | . 1 . . . 1 2 . 1 . Reactor 1 | . . . . . . . . . 1 Propulsion 24 | 2 1 . 2 6 3 3 . . 7 Treads 5 | . . . 2 1 . . . . 2 Leg 6 | . . . . 5 1 . . . . Wheel 7 | 2 1 . . . . . . . 4 Hover . | . . . . . . . . . . Flight 6 | . . . . . 2 3 . . 1 Utility 22 | 1 2 . . 4 3 . 3 1 8 Device 15 | . 2 . . 3 2 . 2 . 6 Storage 4 | 1 . . . 1 1 . . . 1 Processor 1 | . . . . . . . . 1 . Hackware 1 | . . . . . . . . . 1 Protection 1 | . . . . . . . 1 . . Artifact . | . . . . . . . . . . Weapon 21 | 2 1 . 2 6 5 . 2 2 1 Energy Gun 6 | 1 . . . 2 3 . . . . Energy Cannon 3 | . . . 1 . 1 . . 1 . Ballistic Gun 8 | 1 1 . . 3 1 . 1 1 . Ballistic Cannon 2 | . . . . . . . 1 . 1 Launcher 1 | . . . . 1 . . . . . Special Weapon . | . . . . . . . . . . Impact Weapon . | . . . . . . . . . . Slashing Weapon 1 | . . . 1 . . . . . . Piercing Weapon . | . . . . . . . . . . Special Melee Weapon . | . . . . . . . . . . Unidentified Prototypes 3 | . . . . 1 . . . 1 1 Parts Lost 62 | . 1 . . 13 18 4 1 11 14 Power 10 | . . . . 2 4 . . 3 1 Propulsion 21 | . 1 . . 5 4 2 . 3 6 Utility 15 | . . . . 1 4 . 1 3 6 Weapon 16 | . . . . 5 6 2 . 2 1 Highest Loss Streak 8 | . 1 . . 8 6 7 1 5 8 To Critical Strikes . | . . . . . . . . . . Average Backups 8 | 3 7 7 7 10 12 2 3 4 4 Power . | . 1 1 1 . . . . 1 2 Propulsion 1 | 2 3 2 2 . . . . . . Utility 3 | . 1 2 2 6 8 1 1 1 1 Weapon 2 | . 1 2 2 4 4 . 1 . 1 Tool/Special . | . . . . . . . . . . Unused Backups 22 | . 2 . 1 . 8 . . 2 9 Power 4 | . . . . . . . . . 4 Propulsion 3 | . 2 . . . . . . . 1 Utility 12 | . . . . . 7 . . 2 3 Weapon 3 | . . . 1 . 1 . . . 1 Tool/Special . | . . . . . . . . . . Average Slot Usage (%) 72 | . 96 100 100 69 68 29 58 41 21 Engine 2 | . 3 . . 4 5 . . . . Core 6 | . 10 14 14 3 1 4 11 7 . Treads 5 | . . . 11 10 . . . . . Leg 4 | . . . . 7 17 . . . . Wheel 8 | . 27 28 16 . . . . . 2 Flight 1 | . . . . . . 11 17 7 1 Device 13 | . 11 14 14 16 20 5 11 6 7 Storage 8 | . 14 14 14 6 4 5 5 3 1 Energy Gun 3 | . 13 . . . 11 . . . . Energy Cannon 1 | . . . 1 3 . . . . . Ballistic Gun 13 | . 14 28 26 14 2 . 5 7 . Peak Build Rating 67 | 6 11 11 18 47 63 46 64 67 64 Average Rating 29 | 5 9 11 13 33 50 35 59 42 34 On Entrance 23 | . 6 11 11 18 46 33 46 59 6 Avg Prop Armor Cover (%) 11 | . . . 10 6 12 14 . . 22 Naked Turns . | . . . . . . . . . . Heaviest Build 116 | 10 14 14 23 114 116 23 30 37 33 Greatest Support 75 | 32 32 32 32 58 68 32 32 32 75 Greatest Overweight (x) 34 | . . . 1 34 5 . . 12 . Average Overweight (x) . | . . . . 1 1 . . . . Largest Inventory Capacity 25 | 8 8 8 8 25 25 8 8 8 10 Average Capacity 13 | 7 8 8 8 22 22 8 8 7 6 Most Carried 16 | 6 8 7 8 13 16 8 5 7 10 Average Carried 8 | 3 7 7 7 10 12 2 3 4 4 Final Capacity 25 | 8 8 8 8 25 8 8 8 5 5 Final Carried 13 | 6 7 7 8 13 8 3 5 3 4 Class Distribution -------------------- 56% | Mutant 14% | Scavenger-Skirmisher 12% | Tank 8% | Scavenger-Mutant 3% | Derelict-Mutant Dominant Class ---------------- Mutant | -10/Materials Mutant | -10/Subcaves Mutant | -8/Scraptown Tank | -6/Factory Scavenger-Skirmisher | -5/Factory Mutant | -5/Upper Caves Derelict-Mutant | -5/Upper Caves Derelict-Tank | -4/Factory Mutant | -3/Research Resources | -11 -10 -10 -8 -6 -5 -5 -5 -4 -3 ----------- Run | Yrd Mat Sub Scr Fac Fac Upp Upp Fac Res Matter Collected 1600 | 212 333 . 4 553 103 50 124 116 105 Remotely . | . . . . . . . . . . Salvage Created 1467 | . 155 . . 602 390 31 51 238 . Parts 69 | . 10 . . 31 15 3 5 5 . Haulers Intercepted 1 | . 1 . . . . . . . . Recyclers Shooed 3 | . . . . 2 1 . . . . Parts Field Recycled . | . . . . . . . . . . Retrieved Matter . | . . . . . . . . . . Parts Self-Destructed 7 | . . 3 . . . 1 3 . . Prevented . | . . . . . . . . . . Parts Restored . | . . . . . . . . . . Kills | -11 -10 -10 -8 -6 -5 -5 -5 -4 -3 ------- Run | Yrd Mat Sub Scr Fac Fac Upp Upp Fac Res Combat Hostiles Destroyed 35 | . 2 . . 13 10 2 3 5 . Guns 24 | . 2 . . 7 10 . 3 2 . Cannons 5 | . . . . 2 . . . 3 . AOE 6 | . . . . 4 . 2 . . . Classes Destroyed 7 | . 3 . . 3 1 . . . . Worker 1 | . . . . . 1 . . . . Hauler 1 | . 1 . . . . . . . . Swarmer 15 | . . . . 4 6 2 3 . . Grunt 17 | . 2 . . 7 3 . . 5 . Hunter 1 | . . . . 1 . . . . . Programmer 2 | . . . . 1 1 . . . . Federalist 1 | . 1 . . . . . . . . Best Kill Streak 6 | . 1 . . 4 6 2 3 3 . Combat Bots Only 6 | . 1 . . 4 6 2 3 3 . Max Kills in Single Turn 3 | . 1 . . 3 2 1 1 2 . Gunslinging . | . . . . . . . . . . Exploded 3 | . . . . 3 . 1 . . . Melee . | . . . . . . . . . . Uniques/NPCs Destroyed . | . . . . . . . . . . Combat | -11 -10 -10 -8 -6 -5 -5 -5 -4 -3 -------- Run | Yrd Mat Sub Scr Fac Fac Upp Upp Fac Res Hostile Shots Fired 716 | . 26 . . 163 121 46 19 95 246 Missed 246 | . 4 . . 46 37 21 9 31 98 Hits 470 | . 22 . . 117 84 25 10 64 148 Projectile 470 | . 22 . . 117 84 25 10 64 148 AOE 5 | . . . . . 5 . . . . Critical Strikes 24 | . . . . 7 2 . . 3 12 Actively Blocked 1 | . . . . . . . . 1 . Damage Taken 9596 | . 261 . . 2015 1911 351 158 1596 3304 Core 2947 | . 69 . . 272 355 106 17 798 1330 Absorbed by Shields 175 | . . . . 175 . . . . . Redirected to Shielding 95 | . . . . . . . 18 77 . Regen/Repaired (Parts) 11 | . 11 . . . . . . . . Core Remaining (%) 64 | 100 . . 72 68 . . 52 30 . Volleys Fired 138 | . 30 2 8 44 22 4 11 17 . Largest 4 | . 2 1 2 3 4 1 1 4 . Hottest 309 | . 60 20 110 138 309 75 24 204 . Shots Fired 319 | . 60 2 10 109 68 4 11 55 . Gun 269 | . 60 2 2 93 68 . 11 33 . Cannon 45 | . . . 8 14 . 1 . 22 . Launcher 5 | . . . . 2 . 3 . . . Special . | . . . . . . . . . . Kinetic 185 | . 30 2 2 89 1 . 11 50 . Thermal 128 | . 30 . 8 18 67 . . 5 . Explosive 5 | . . . . 2 . 3 . . . Electromagnetic 1 | . . . . . . 1 . . . Robot Hit Streak 15 | . 12 . 15 10 9 1 3 8 . Robot Miss Streak 6 | . 2 . 1 2 5 3 3 6 . Penetration Max 1 | . . . . 1 . . . . . Secondary Targets 3 | . . . . 2 1 . . . . Max Gunslinging Chain 1 | . . . . 1 1 . . . . Shots Hit Robots 210 | . 45 . 3 73 42 1 9 37 . Core Hits 106 | . 9 . 1 37 24 5 7 21 2 Critical Kills . | . . . . . . . . . . Critical Parts Destroyed 1 | . . . . 1 . . . . . Critical Strikes 8 | . . . . 1 4 . . 3 . Burn 4 | . . . . . 4 . . . . Destroy 1 | . . . . 1 . . . . . Blast 3 | . . . . . . . . 3 . Melee Attacks 7 | . . . 7 . . . . . . Impact . | . . . . . . . . . . Slashing 7 | . . . 7 . . . . . . Piercing . | . . . . . . . . . . Sneak Attacks . | . . . . . . . . . . Combat Hostiles . | . . . . . . . . . . Follow-up Attacks . | . . . . . . . . . . Damage Inflicted 4419 | . 445 . 79 1736 898 135 148 945 33 Guns 3017 | . 422 . 15 1128 898 . 148 406 . Cannons 921 | . . . 64 318 . . . 539 . Explosions 425 | . . . . 290 . 135 . . . Melee . | . . . . . . . . . . Ramming 56 | . 23 . . . . . . . 33 Kinetic 2167 | . 181 . 15 1042 . . 148 781 . Thermal 1771 | . 241 . 64 404 898 . . 164 . Explosive 425 | . . . . 290 . 135 . . . Electromagnetic . | . . . . . . . . . . Impact . | . . . . . . . . . . Slashing . | . . . . . . . . . . Piercing . | . . . . . . . . . . Highest Corruption 13 | . . . . 13 1 1 1 . 5 Average Corruption 5 | . . . . 11 1 1 1 . 2 Corruption Purged . | . . . . . . . . . . Corruption Blocked . | . . . . . . . . . . Effects 27 | . . . . 22 2 3 . . . Message Errors 5 | . . . . 4 1 . . . . Matter Fused 6 | . . . . 6 . . . . . Heat Flow Errors 5 | . . . . 3 . 2 . . . Energy Discharges 1 | . . . . 1 . . . . . Parts Fused 1 | . . . . 1 . . . . . Data Loss (minor) 3 | . . . . 2 . 1 . . . Data Loss (major) 1 | . . . . . 1 . . . . Alerts 1 | . . . . 1 . . . . . Weapon Failures 4 | . . . . 4 . . . . . Overload Shots . | . . . . . . . . . . Overflow Damage 46 | . . . . 21 . . . 25 . Projectiles 46 | . . . . 21 . . . 25 . Explosions . | . . . . . . . . . . Melee . | . . . . . . . . . . Knockbacks 5 | . . . . . . . . 5 . Impact . | . . . . . . . . . . Kinetic 5 | . . . . . . . . 5 . Secondary . | . . . . . . . . . . Self-Inflicted Damage 27 | . 10 . . . . 17 . . . Shots 2 | . . . . . . 2 . . . Rammed 27 | . 3 . . . . . . . 24 Targets Rammed 27 | . 3 . . . . . . . 24 Kicked . | . . . . . . . . . . Crushed . | . . . . . . . . . . Highest Temperature 568 | . 67 . 130 220 269 263 . 568 19 Average Temperature 102 | . 17 . 52 46 108 118 . 215 10 Received Heat Transfer 2298 | . 138 . . 674 228 84 . 419 755 Effects 10 | . . . . . . . . 10 . Shutdowns 3 | . . . . . . . . 3 . Energy Bleed 2 | . . . . . . . . 2 . Matter Decay 1 | . . . . . . . . 1 . Short Circuit 1 | . . . . . . . . 1 . Damage (minor) 1 | . . . . . . . . 1 . Damage (core) 2 | . . . . . . . . 2 . Siege Activations . | . . . . . . . . . . Martial Activations . | . . . . . . . . . . Shielding Activations . | . . . . . . . . . . Robots Disrupted . | . . . . . . . . . . Combat Hostiles . | . . . . . . . . . . Robots Corrupted . | . . . . . . . . . . Combat Hostiles . | . . . . . . . . . . Parts Fried . | . . . . . . . . . . Impact Corruptions . | . . . . . . . . . . Robots Melted . | . . . . . . . . . . Combat Hostiles . | . . . . . . . . . . Parts Melted 8 | . . . . 1 7 . . . . Heat Transferred 3756 | . 550 . 100 700 2406 . . . . Parts Sabotaged . | . . . . . . . . . . Parts Stolen . | . . . . . . . . . . Parts Stripped . | . . . . . . . . . . Power Chain Reactions . | . . . . . . . . . . Alert | -11 -10 -10 -8 -6 -5 -5 -5 -4 -3 ------- Run | Yrd Mat Sub Scr Fac Fac Upp Upp Fac Res Maximum Alert Level 1 | . . . . . . . . . 1 Low Security (%) 97 | 100 100 . . 100 100 . . 100 84 Level 1 2 | . . . . . . . . . 15 Level 2 . | . . . . . . . . . . Level 3 . | . . . . . . . . . . Level 4 . | . . . . . . . . . . Level 5 . | . . . . . . . . . . High Security . | . . . . . . . . . . Max Security . | . . . . . . . . . . Peak Influence 329 | . 20 . . 99 154 . . 67 329 Initial 37 | . . . . . 5 . . 37 2 Average 33 | . 1 . . 24 48 . . 21 79 Influence Increases 1712 | . 47 . . 353 274 160 75 210 593 Destroy 0b10 Robot/C 700 | . 40 . . 260 200 40 60 100 . Destroy 0b10 Robot/NC 10 | . 5 . . . 5 . . . . Destroy Leader 112 | . 2 . . 50 50 . . 10 . Successful Hack 40 | . . . . . . . . 2 38 Disable Machine 30 | . . . . 15 . . . 15 . Destroy Structure 25 | . . . . 13 4 . . 8 . Partial Spotted 15 | . . . . . . . . . 15 Lose Combat Pursuer 780 | . . . . 15 15 120 15 75 540 Influence Decreases 1518 | . 47 . . 341 286 90 84 266 404 Entered New Map 48 | . . . . . 7 . 14 24 3 Time Decay 795 | . 37 . . 255 149 70 60 93 131 Lost Part 486 | . 10 . . 86 130 20 10 110 120 Purge Threat 189 | . . . . . . . . 39 150 Squads Dispatched 16 | . 3 . . 2 5 . . 3 3 Investigation 5 | . 2 . . . . . . 2 1 Extermination 3 | . . . . 1 1 . . . 1 Reinforcement 5 | . 1 . . 1 1 . . 1 1 Assault . | . . . . . . . . . . Garrison 3 | . . . . . 3 . . . . Intercept . | . . . . . . . . . . Searches Triggered . | . . . . . . . . . . Construction Impeded . | . . . . . . . . . . Haulers Reinforced . | . . . . . . . . . . Active Scanning Responses . | . . . . . . . . . . Cargo Convoy Interrupts . | . . . . . . . . . . Stealth | -11 -10 -10 -8 -6 -5 -5 -5 -4 -3 --------- Run | Yrd Mat Sub Scr Fac Fac Upp Upp Fac Res Distress Signals 3 | . . . . . . . . . 3 Communications Jammed . | . . . . . . . . . . Distress Signals . | . . . . . . . . . . Times Spotted 134 | . 14 . . 22 17 12 3 16 50 Peak Tracking Total 24 | . 4 . 1 5 5 10 3 8 24 Tactical Retreats 15 | . . . . 1 1 2 1 2 8 Traps | -11 -10 -10 -8 -6 -5 -5 -5 -4 -3 ------- Run | Yrd Mat Sub Scr Fac Fac Upp Upp Fac Res Traps Triggered . | . . . . . . . . . . Indirectly . | . . . . . . . . . . Trap Hack Attempts . | . . . . . . . . . . Triggered . | . . . . . . . . . . Disarmed . | . . . . . . . . . . Reprogrammed . | . . . . . . . . . . Reused . | . . . . . . . . . . Traps Extracted . | . . . . . . . . . . Installed . | . . . . . . . . . . Triggered . | . . . . . . . . . . Machines | -11 -10 -10 -8 -6 -5 -5 -5 -4 -3 ---------- Run | Yrd Mat Sub Scr Fac Fac Upp Upp Fac Res Machines Disabled 4 | . . . 2 1 . . . 1 . Max in Single Turn 1 | . . . 1 1 . . . 1 . Machines Repaired . | . . . . . . . . . . Machines Dismantled . | . . . . . . . . . . Machines Sabotaged . | . . . . . . . . . . Overloaded Fab Kills . | . . . . . . . . . . Hacking | -11 -10 -10 -8 -6 -5 -5 -5 -4 -3 --------- Run | Yrd Mat Sub Scr Fac Fac Upp Upp Fac Res Machines Accessed 23 | . 5 . 3 1 3 . . 5 6 Terminals 10 | . 3 . . . 2 . . 2 3 Fabricators 1 | . . . . . . . . 1 . Repair Stations 1 | . 1 . . . . . . . . Recycling Units 3 | . 1 . . . . . . 1 1 Scanalyzers 4 | . . . . 1 . . . 1 2 Garrison Access 1 | . . . . . 1 . . . . Total Hacks 71 | . 12 . 26 3 5 . . 10 15 Successful 42 | . 3 . 26 . 1 . . 6 6 Failed 29 | . 9 . . 3 4 . . 4 9 Catastrophic 7 | . 3 . . . . . . 1 3 Database Lockouts . | . . . . . . . . . . Manual 4 | . 2 . . . . . . . 2 Terminals 24 | . 7 . . . 3 . . 4 10 Fabricators 1 | . . . . . . . . 1 . Repair Stations 3 | . 3 . . . . . . . . Recycling Units 6 | . 2 . . . . . . 2 2 Scanalyzers 9 | . . . . 3 . . . 3 3 Garrison Access 2 | . . . . . 2 . . . . Terminal Hacks 35 | . 1 . 26 . 1 . . 2 5 Record 27 | . . . 26 . . . . . 1 Prototype ID Bank 1 | . . . . . . . . . 1 Open DSF 2 | . . . . . 1 . . 1 . Unreport Threat 2 | . . . . . . . . 1 1 Locate Traps 3 | . 1 . . . . . . . 2 Fabricator Hacks 1 | . . . . . . . . 1 . Build 1 | . . . . . . . . 1 . Repair Station Hacks 2 | . 2 . . . . . . . . Scan Component 1 | . 1 . . . . . . . . Repair 1 | . 1 . . . . . . . . Recycling Unit Hacks . | . . . . . . . . . . Scanalyzer 4 | . . . . . . . . 3 1 Retrieve Study 4 | . . . . . . . . 3 1 Garrison Access Hacks . | . . . . . . . . . . Unauthorized Hacks . | . . . . . . . . . . Terminals . | . . . . . . . . . . Fabricators . | . . . . . . . . . . Repair Stations . | . . . . . . . . . . Recycling Units . | . . . . . . . . . . Scanalyzers . | . . . . . . . . . . Garrison Access . | . . . . . . . . . . Data Cores Recovered . | . . . . . . . . . . Used . | . . . . . . . . . . Hacking Detections 16 | . 4 . . 1 2 . . 3 6 Full Trace Events 4 | . 1 . . . . . . 2 1 Feedback Events . | . . . . . . . . . . Feedback Blocked . | . . . . . . . . . . Robot Schematics Acquired . | . . . . . . . . . . Robots Built . | . . . . . . . . . . Authchips . | . . . . . . . . . . Time . | . . . . . . . . . . Total Robot Build Rating . | . . . . . . . . . . Part Schematics Acquired . | . . . . . . . . . . Parts Built 2 | . . . . . . . . 2 . Authchips . | . . . . . . . . . . Time 117 | . . . . . . . . 117 . Total Part Build Rating 14 | . . . . . . . . 14 . Part Studies Acquired 4 | . . . . . . . . 3 1 Parts Repaired 1 | . 1 . . . . . . . . Time 26 | . 26 . . . . . . . . Parts Recycled . | . . . . . . . . . . Recycled Matter . | . . . . . . . . . . Retrieved Matter . | . . . . . . . . . . Retrieved Components . | . . . . . . . . . . Parts Scanalyzed . | . . . . . . . . . . Part Schematics Acquired . | . . . . . . . . . . Parts Damaged . | . . . . . . . . . . Bothacking | -11 -10 -10 -8 -6 -5 -5 -5 -4 -3 ------------ Run | Yrd Mat Sub Scr Fac Fac Upp Upp Fac Res Used RIF Installer . | . . . . . . . . . . Robots Hacked . | . . . . . . . . . . Non-combat . | . . . . . . . . . . Combat . | . . . . . . . . . . Robot Hacks Applied . | . . . . . . . . . . Relay Couplers Released . | . . . . . . . . . . Fabnet Peak Effective % . | . . . . . . . . . . Robots Rewired . | . . . . . . . . . . Allies Hacked . | . . . . . . . . . . Hacks Repelled . | . . . . . . . . . . Allies | -11 -10 -10 -8 -6 -5 -5 -5 -4 -3 -------- Run | Yrd Mat Sub Scr Fac Fac Upp Upp Fac Res Total Allies . | . . . . . . . . . . Largest Group . | . . . . . . . . . . Highest-Rated Group . | . . . . . . . . . . Highest-Rated Ally . | . . . . . . . . . . Total Orders . | . . . . . . . . . . Ally Attacks . | . . . . . . . . . . Total Damage . | . . . . . . . . . . Kills . | . . . . . . . . . . Allies Corrupted . | . . . . . . . . . . Allies Melted . | . . . . . . . . . . Intel | -11 -10 -10 -8 -6 -5 -5 -5 -4 -3 ------- Run | Yrd Mat Sub Scr Fac Fac Upp Upp Fac Res Active Infowar (turns) 2017 | . . . . 963 655 134 126 137 2 Sensors 2 | . . . . . . . . . 2 Traps 1794 | . . . . 963 655 134 42 . . Cloaking 250 | . . . . . . . 113 137 . Robot Analysis Total . | . . . . . . . . . . Derelict Logs Recovered 1 | . . . . . . 1 . . . Drone Launches . | . . . . . . . . . . Drone Recoveries . | . . . . . . . . . . Exploration | -11 -10 -10 -8 -6 -5 -5 -5 -4 -3 ------------- Run | Yrd Mat Sub Scr Fac Fac Upp Upp Fac Res Turns Passed 4232 | 65 437 259 884 987 700 191 126 213 370 Spaces Moved 3387 | 44 297 250 721 301 317 459 259 223 516 Core 353 | 1 . . . 5 27 . . 46 274 Treads 441 | . . . 223 202 . . . . 16 Legs 314 | . . . . 94 220 . . . . Wheels 1094 | 43 297 250 498 . . . . . 6 Hover . | . . . . . . . . . . Flight 1185 | . . . . . 70 459 259 177 220 Fastest Speed 34 | 50 100 100 100 153 37 34 34 34 45 Average Speed 101 | 98 100 100 113 263 173 36 34 61 54 Slowest Speed 1750 | 100 100 100 160 1750 470 40 34 650 180 Overloaded Moves . | . . . . . . . . . . Propulsion Burnouts . | . . . . . . . . . . Robots Hopped 21 | . . . . . 4 1 . 1 15 Potential Cave-ins . | . . . . . . . . . . Cave-ins Triggered 1 | . . . . 1 . . . . . Exploration Rate (%) 24 | 3 33 8 57 7 9 58 37 5 27 Regions Visited 9 Branch Regions 4 Pre-discovered Areas . | . . . . . . . . . . Known Exits Taken . | . . . . . . . . . . Unknown Exits Taken 9 | 1 1 1 1 1 1 1 1 1 . Scrap Searched 4 | . . . 2 . . 1 1 . . Spaces Dug 5 | . . . 5 . . . . . . Terrain Destroyed 26 | . . . 5 11 . 6 . 4 . Melee 1 | . . . 1 . . . . . . Projectile 11 | . . . 4 3 . . . 4 . AOE 14 | . . . . 8 . 6 . . . Terrain Rammed . | . . . . . . . . . . Walls Destroyed . | . . . . . . . . . . Machines Disabled . | . . . . . . . . . . Actions | -11 -10 -10 -8 -6 -5 -5 -5 -4 -3 --------- Run | Yrd Mat Sub Scr Fac Fac Upp Upp Fac Res Total 3862 | 62 385 257 764 401 406 474 284 265 564 Wait 158 | 7 39 6 18 20 45 4 6 7 6 Move 3338 | 43 296 249 720 300 308 456 258 220 488 Hop 19 | . . . . . 4 1 . 1 13 Pick Up 60 | 6 6 . 4 12 10 2 3 4 13 Fast Attach 40 | 6 1 . . 10 6 2 3 1 11 Attach 39 | . 3 . . 9 7 5 2 7 6 Detach 7 | . . . . 2 . . 1 3 1 Swap 11 | . 2 . 4 4 1 . . . . Drop 18 | . 5 . 3 . 3 . . 5 2 Fire 138 | . 30 2 8 44 22 4 11 17 . Melee 7 | . . . 7 . . . . . . Ram 3 | . 3 . . . . . . . . Kick . | . . . . . . . . . . Crush 24 | . . . . . . . . . 24 Escape Stasis . | . . . . . . . . . . Rewire . | . . . . . . . . . . Trap . | . . . . . . . . . . Miscellaneous . | . . . . . . . . . . Route ------- -11/Scrapyard -10/Materials -10/Subcaves -8/Scraptown -6/Factory -5/Factory -5/Upper Caves -5/Upper Caves -4/Factory -3/Research (discovered 1 exit: [*Res]) History --------- Turn | Location | Event 18 | -11/Scrapyard | Discovered new exit (range 16) 66 | -11/Scrapyard | Entered Materials 67 | -10/Materials | Met a group of wandering Federalists 150 | -10/Materials | Lost 3 allies 249 | -10/Materials | Repaired Com. Wheel 302 | -10/Materials | Build established: Mutant 499 | -10/Materials | Discovered new exit (range 5) 503 | -10/Materials | Entered Subcaves 504 | -10/Subcaves | Continued accompanying wandering Federalists (1) 504 | -10/Subcaves | Approached by a straggling Scientist 762 | -10/Subcaves | Entered Scraptown 914 | -8/Scraptown | Heard Great Nut preacher, LISTEN AND RECITE! 1035 | -8/Scraptown | Discovered new exit (range 7) 1122 | -8/Scraptown | Visited Shadow of the Wyrm 1151 | -8/Scraptown | Visited The Evicted 1182 | -8/Scraptown | Visited SPCMW 1385 | -8/Scraptown | Visited Assassins FH 1442 | -8/Scraptown | Visited Cave Peace 1485 | -8/Scraptown | Visited UFD Registry 1504 | -8/Scraptown | Visited Cyclists 1565 | -8/Scraptown | Attacked by Scraptown defenders 1569 | -8/Scraptown | Entered Cyclist Reading Room 1646 | -8/Scraptown | Entered Factory 1646 | -6/Factory | Evolved 8 slots: Power x1, Propulsion x2, Utility x4, Weapon x1 1983 | -6/Factory | Build established: Tank 2183 | -6/Factory | Crushed by falling debris 2183 | -6/Factory | System corruption reached 10% 2219 | -6/Factory | Lost 8 parts (2p3n1u2w) 2525 | -6/Factory | Lost 4 parts (2n2w) 2590 | -6/Factory | Discovered new exit (range 16) 2633 | -6/Factory | Entered another Factory area 2633 | -5/Factory | Evolved 2 slots: Propulsion x1, Weapon x1 2920 | -5/Factory | Garrison activated, responded to threat 2973 | -5/Factory | Lost 3 parts (1p1u1w) 3182 | -5/Factory | Spotted B-75 Beast 3224 | -5/Factory | Lost 4 parts (1p2n1u) 3226 | -5/Factory | Build established: Scavenger-Skirmisher 3282 | -5/Factory | Lost 6 parts (1p2n3w) 3326 | -5/Factory | Discovered new exit (range 15) 3333 | -5/Factory | Entered Upper Caves 3336 | -5/Upper Caves | Learned Factory interactive machine intel 3341 | -5/Upper Caves | Attracted the attention of an 0b10 outpost 3419 | -5/Upper Caves | Lost 7 parts (2n2u3w) 3447 | -5/Upper Caves | Encountered a Warlord checkpoint 3459 | -5/Upper Caves | Spotted B-75 Beast 3508 | -5/Upper Caves | Discovered new exit (range 12) 3524 | -5/Upper Caves | Entered another Upper Caves area 3646 | -5/Upper Caves | Discovered new exit (range 11) 3650 | -5/Upper Caves | Entered Factory 3650 | -4/Factory | Evolved 2 slots: Propulsion x1, Utility x1 3651 | -4/Factory | Loaded intel: 55 interactive machine locations 3728 | -4/Factory | Lost 3 parts (1p1n1u) 3793 | -4/Factory | Fabricated Lgt. Antimatter Reactor (x2) 3817 | -4/Factory | Core integrity fell below 50% 3850 | -4/Factory | Lost 5 parts (1p2u2w) 3855 | -4/Factory | Discovered new exit (range 16) 3863 | -4/Factory | Entered Research 3863 | -3/Research | Evolved 2 slots: Utility x2 3892 | -3/Research | Lost 3 parts (1p2n) 4066 | -3/Research | Lost 6 parts (1p1n3u1w) 4086 | -3/Research | Core integrity fell below 50% 4137 | -3/Research | Build established: Mutant 4164 | -3/Research | Spotted B-86 Titan 4178 | -3/Research | Spotted B-86 Titan 4223 | -3/Research | Core integrity fell below 20% 4230 | -3/Research | Discovered new exit (range 14) 4233 | -3/Research | Destroyed by X-87 Electro with Compact HERF Cannon Last Messages --------------- 04204_ Penetrated by Slug. 04204_ Knocked back. 04204_ Penetrated by Slug. 04204_ Com. Wheel destroyed. 04207_ K-01 Serf collects debris. 04207_ Med. Storage Unit destroyed. 04207_ Com. Wheel destroyed. 04209_ K-01 Serf destroyed. 04209_ Com. Wheel destroyed. 04209_ Penetrated by Slug. 04210_ Drone sends a signal. 04214_ Com. Wheel destroyed. 04223_ Slammed into X-87 Electro. 04223_ X-87 Electro destroyed. [Achievement: Physics Hates This One Trick] 04225_ Acquired 85 matter. 04225_ Knocked back. 04226_ U-05 Engineer destroyed. 04227_ Lrn. Sensor Array destroyed. 04230_ EXIT=FOUND Map ----- +----------------------------------------------------+ | | | | | | | | | | | | | | | | | | | | | | | | | ?????????????????????????????????????????????????? | | ?????????????????????????????????????????????????? | | ?????????????????????????????????????????????????? | | ???????????????????????####??????????????????????? | | ??????????????????????? ??????????????????????? | | ??????????????????????? ??????????????????????? | | ????????????????????????< ??????????????????????? | | ???????????????????????? ??????????????????????? | | ????????????????????????Y ??????????????????????? | | ????????????????????????# #??????????????????????? | | ????????????????????????# #??????????????????????? | | ????????????????????????# #??????????????????????? | | ????????????????????????# ##??#######????????????? | | ???????????????????######@;#? / #????????????? | | ???????????????????# #? #????????????? | | ??????????????###+## # #????????????? | | ??????????????# # #????????????? | | ??????????????+ + ] ![ #????????????? | | ??????????????# # [ #????????????? | | ??????????????###### # #????????????? | | ???????????????????# #? #????????????? | | ???????????????????### ###? #????????????? | | ????????????????????#; ############????????????? | | ????????????????????## x ## #????????????? | | ???????????#########?#H ## #????????????? | | #######????# ### p ## *#????????????? | | ???# ## % # #????????????? | | #### ##Y ###+#######????????????? | | ??""" ! + ! ! *!= #######????????????? | | ??""" # ########% =%### # #????????????? | | ????????# # #?# |!#?# # ! #????????????? | | ????????+ + ###"#"###?# + #????????????? | | ????????### # # % #??# # #????????????? | | ??????????# #?? # #??# # #????????????? | | ??????????# #????# #??# # #????????????? | | ??????????# #????#* #??# # #????????????? | | ???######## ######!== "#??# ##+####????????????? | | # *%=""#??# ##########+###??? | +----------------------------------------------------+ Best States ------------- Heat Dissipation 92 Coolant Potential 120 Energy Generation 31 Energy Capacity 360 Matter Stores 300 Matter Capacity 300 Sight Range 16 Terrain Scan Density 10 Cloak Strength 2 Weapon Shielding 66 Point Defense Rating 160 Evasion (%) 73 Recoil Reduction 8 Kinecelleration 40 Defensive Hacking 10 Item Schematics ----------------- None Robot Schematics ------------------ None Fabricated ------------ Lgt. Antimatter Reactor | x2 | -4/Factory | Preloaded Repaired ---------- Com. Wheel | 63% | -10/Materials Studied --------- Nuclear Pulse Array | -4/Factory | Hacked Nuclear Pulse Thruster | -4/Factory | Hacked Lgt. Nuclear Core | -4/Factory | Hacked Impulse Thruster Array | -3/Research | Hacked Alien Tech Used ----------------- None Achievements -------------- Bob, First Of His Name For Emergencies Only Ghost 'Em Heavy Suspicion Item+ Physics Hates This One Trick Strength In Numbers That Tickles Well Done Challenges ------------ None Game ------ Seed ProtonCouplerSegregator Manual? 0 Play Time 02:20:48 Cumulative 204.7 hours Start 2025.12.05 @ 22:32:47 End 2025.12.06 @ 12:33:23 Sessions 5 Manual Loads 0 Difficulty Rogue Special Mode None Game No. 67 Rogue 67 Adventurer 0 Explorer 0 Win Type - Total 2 Types 2/0/0/0/0/0/0/0/0/0 Lore% 43 Gallery% 56 Achievement% 31 Wizard Run 0 Options --------- Layout 0 ASCII 0 Keyboard 0 Movement Numpad Keybinds 1 Fullscreen 2 Font 18/SmallcapsGlow Map View 76x50 Zoom Use 0% Tactical HUD 1 Map Filters NONE Filters NONE Steam 1 RUN: 62768107-0c61-46ad-b142-4cd5e33dbd52